bitfinex/quotes_SOLUSD_20251106
["timestamp","ask_amount","ask_price","bid_price","bid_amount"]
[1762398647919,105.38,162.38,162.33,8.39377545]
[1762398647920,0.68,162.37,162.33,14.55393824]
[1762398648446,110.85844731,162.38,162.33,14.55393824]
[1762398648621,111.53844731,162.38,162.33,14.55393824]
[1762398649240,111.53844731,162.38,162.34,0.71]
[1762398649448,111.53844731,162.38,162.33,14.55393824]
[1762398650828,111.53844731,162.38,162.34,0.71]
[1762398652359,111.53844731,162.38,162.34,6.86989094]
[1762398654951,105.38,162.38,162.34,6.86989094]
[1762398655252,111.53839892,162.38,162.34,6.86989094]
[1762398656149,111.53839892,162.38,162.34,0.71]
[1762398656350,6.82915012,162.37,162.31,11.21277733]
[1762398656578,6.82915012,162.37,162.31,14.07096364]
[1762398656735,0.67,162.36,162.31,17.35374097]
[1762398656943,6.15915012,162.37,162.32,3.99277733]
[1762398657449,0.67,162.36,162.32,3.99277733]
[1762398657628,111.528412,162.38,162.33,3.99277733]
[1762398658026,111.528412,162.38,162.34,0.71]
[1762398658637,110.858412,162.38,162.34,6.86983813]
[1762398658841,111.528412,162.38,162.34,6.86983813]
[1762398660156,0.67,162.37,162.32,3.99277733]
[1762398660368,0.67,162.37,162.32,10.15325568]
[1762398660658,0.67,162.37,162.33,0.71]
[1762398661179,0.67,162.37,162.32,3.28277733]
[1762398661379,6.1591525,162.36,162.28,3.28277733]
[1762398661871,6.15886956,162.37,162.32,3.28277733]
[1762398662248,6.15886956,162.37,162.29,10.49882769]
[1762398662249,6.82886956,162.37,162.33,3.99277733]
[1762398662467,0.67,162.37,162.33,3.99277733]
[1762398663060,131.45046925,162.38,162.35,3.28277733]
[1762398663266,132.12046925,162.38,162.34,3.99277733]
[1762398663560,132.12046925,162.38,162.34,10.15257066]
[1762398663763,0.67,162.37,162.34,10.15257066]
[1762398664663,0.67,162.37,162.34,9.44257066]
[1762398665049,0.67,162.37,162.34,6.15979333]
[1762398665377,125.292,162.38,162.34,10.15257066]
[1762398665662,125.962,162.38,162.34,10.15257066]
[1762398666668,0.67,162.37,162.34,10.15257066]
[1762398667763,0.67,162.37,162.34,9.44257066]
[1762398668072,6.82881676,162.37,162.33,3.99277733]
[1762398668263,6.82881676,162.37,162.33,0.71]
[1762398668467,6.82881676,162.37,162.33,3.99277733]
[1762398668658,6.82881676,162.37,162.33,10.15288116]
[1762398669252,0.67,162.37,162.33,10.15288116]
[1762398670471,0.67,162.37,162.33,8.97109153]
[1762398671650,6.82880155,162.37,162.33,8.97109153]
[1762398672048,6.15880155,162.37,162.32,2.1009877]
[1762398672360,6.15880155,162.37,162.31,7.2]
[1762398672361,0.67,162.36,162.31,13.34094278]
[1762398672567,0.67,162.36,162.31,15.44193048]
[1762398672771,125.292,162.38,162.34,2.1009877]
[1762398672959,0.67,162.37,162.32,2.8109877]
[1762398673370,0.67,162.37,162.33,0.71]
[1762398674080,0.67,162.37,162.33,6.87012528]
[1762398674575,0.67,162.37,162.33,8.97111298]
[1762398676356,6.82880325,162.37,162.32,6.16054542]
[1762398676657,0.67,162.37,162.33,2.1009877]
[1762398676854,131.45050702,162.38,162.33,2.8109877]
[1762398677059,0.67,162.37,162.33,2.8109877]
[1762398678474,6.82900409,162.37,162.33,2.8109877]
[1762398678683,0.67,162.36,162.33,8.9710997]
[1762398678887,0.67,162.36,162.31,13.34104875]
[1762398679066,104.7,162.35,162.29,2.1009877]
[1762398679462,104.7,162.35,162.31,2.1009877]
[1762398679664,104.7,162.35,162.32,0.71]
[1762398679871,104.7,162.35,162.32,2.8109877]
[1762398680192,104.7,162.35,162.33,2.1009877]
[1762398680487,104.7,162.35,162.32,8.97137522]
[1762398680873,105.37,162.35,162.32,6.16038752]
[1762398681783,0.67,162.34,162.3,8.26217511]
[1762398681961,0.67,162.34,162.3,6.16118741]
[1762398682472,0.67,162.34,162.3,8.26217511]
[1762398684074,6.83000633,162.34,162.3,2.1009877]
[1762398684469,0.69,162.33,162.3,8.26208]
[1762398687768,0.69,162.33,162.31,8.261965]
[1762398689185,0.69,162.33,162.31,2.1009877]
[1762398689383,6.85045543,162.33,162.3,2.7609877]
[1762398689585,6.85045543,162.33,162.3,0.66]
[1762398690288,0.69,162.33,162.3,8.92239574]
[1762398692170,0.69,162.33,162.3,2.7609877]
[1762398692376,6.85032663,162.33,162.3,2.7609877]
[1762398692896,6.85032663,162.33,162.3,0.66]
[1762398693895,6.85032663,162.33,162.3,6.8214103]
[1762398693896,0.69,162.33,162.3,6.8214103]
[1762398695072,110.85968498,162.35,162.3,6.8214103]
[1762398695273,104.7,162.35,162.32,2.1009877]
[1762398695873,111.54962608,162.35,162.32,2.1009877]
[1762398696978,0.69,162.34,162.32,2.1009877]
[1762398697574,0.69,162.34,162.31,6.87098957]
[1762398697780,0.69,162.34,162.31,8.97197727]
[1762398698797,111.54962608,162.35,162.31,8.97197727]
[1762398701929,0.69,162.34,162.31,8.97197727]
[1762398706329,36.70602209,188.58,162.33,2.1009877]
[1762398706330,56.15388625,162.5,162.33,2.1009877]
[1762398706628,56.15388625,162.5,162.38,9.78882769]
[1762398706629,0.69,162.49,162.38,9.78882769]
[1762398706921,21.282,162.49,162.41,2.1009877]
[1762398707418,0.69,162.48,162.41,2.1009877]
[1762398708420,6.15498245,162.47,162.41,2.1009877]
[1762398708920,0.69,162.46,162.41,2.1009877]
[1762398710415,6.15574022,162.45,162.39,2.1009877]
[1762398710605,6.15574022,162.45,162.39,2.8109877]
[1762398710806,0.69,162.44,162.39,0.71]
[1762398711120,0.69,162.44,162.39,2.1009877]
[1762398711324,0.69,162.44,162.39,2.8109877]
[1762398712131,6.15649818,162.43,162.39,2.8109877]
[1762398712311,6.15649818,162.43,162.35,35.99082968]
[1762398712312,6.15649818,162.43,162.35,2.1009877]
[1762398712512,0.7,162.42,162.35,2.1009877]
[1762398712714,0.7,162.42,162.34,11.88981539]
[1762398713607,0.7,162.42,162.34,6.15988632]
[1762398713608,21.55039713,162.41,162.34,6.15988632]
[1762398713828,21.55039713,162.41,162.33,16.15116131]
[1762398714120,21.55039713,162.41,162.33,14.05017361]
[1762398714121,0.7,162.4,162.33,14.05017361]
[1762398715008,6.15801465,162.39,162.33,14.05017361]
[1762398715828,0.7,162.38,162.33,14.05017361]
[1762398718636,0.7,162.38,162.33,16.15116131]
[1762398719027,6.8584332,162.38,162.33,16.15116131]
[1762398719820,0.7,162.37,162.33,16.15116131]
[1762398720532,111.55878016,162.37,162.33,7.18]
[1762398720736,104.7,162.36,162.28,6.16208734]
[1762398720921,105.4,162.35,162.29,0.71]
[1762398721120,0.7,162.34,162.29,0.71]
[1762398721525,0.7,162.34,162.27,8.97347276]
[1762398721724,0.7,162.34,162.28,0.71]
[1762398722445,6.16029076,162.33,162.29,6.1618091]
[1762398722742,6.16029076,162.33,162.28,6.87216441]
[1762398723037,0.7,162.32,162.28,6.87216441]
[1762398723634,0.7,162.32,162.28,0.71]
[1762398723945,0.7,162.32,162.28,6.87215714]
[1762398725043,6.8607339,162.32,162.28,2.8109877]
[1762398725343,6.8607339,162.32,162.26,2.8109877]
[1762398725519,0.7,162.31,162.26,2.8109877]
[1762398726348,0.7,162.31,162.25,13.34307695]
[1762398726349,0.7,162.31,162.25,9.2809877]
[1762398726517,0.7,162.31,162.23,11.88981539]
[1762398726839,0.7,162.31,162.25,2.1009877]
[1762398726840,105.4,162.31,162.25,2.1009877]
[1762398727038,6.16142945,162.3,162.25,8.26415027]
[1762398727246,6.86142945,162.3,162.25,8.26415027]
[1762398727427,0.7,162.29,162.25,8.97415027]
[1762398727630,0.7,162.29,162.22,9.78882769]
[1762398727932,0.7,162.29,162.22,2.8109877]
[1762398729142,6.1621888,162.28,162.23,6.16408802]
[1762398729433,6.1621888,162.28,162.23,8.26507572]
[1762398729741,0.7,162.27,162.23,8.26507572]
[1762398730430,0.7,162.27,162.23,9.45106166]
[1762398731241,0.7,162.29,162.26,3.28697364]
[1762398731544,125.992,162.31,162.26,3.28697364]
[1762398731711,125.992,162.31,162.26,3.99697364]
[1762398731712,0.7,162.3,162.26,3.99697364]
[1762398731908,0.7,162.3,162.26,0.71]
[1762398732230,0.7,162.3,162.26,3.99697364]
[1762398732416,0.7,162.3,162.26,10.15972879]
[1762398733136,0.7,162.3,162.27,3.28697364]
[1762398733331,104.7,162.31,162.29,3.28697364]
[1762398733531,0.7,162.3,162.27,3.28697364]
[1762398735026,6.86176899,162.3,162.27,3.28697364]
[1762398735334,6.86176899,162.3,162.26,3.28697364]
[1762398735542,0.7,162.29,162.26,3.28697364]
[1762398736340,0.7,162.29,162.26,9.44991446]
[1762398736725,111.56114037,162.31,162.27,3.99697364]
[1762398737123,0.7,162.3,162.27,3.99697364]
[1762398737526,0.7,162.3,162.27,3.28697364]
[1762398738122,0.7,162.3,162.27,3.99697364]
[1762398738530,0.7,162.3,162.27,3.28697364]
[1762398738950,104.7,162.31,162.29,3.28697364]
[1762398739445,105.4,162.31,162.28,3.28697364]
[1762398740150,105.4,162.31,162.28,3.99697364]
[1762398740649,0.7,162.3,162.25,6.16332819]
[1762398740849,0.7,162.3,162.27,3.28697364]
[1762398741150,105.4,162.31,162.27,3.28697364]
[1762398741831,0.7,162.3,162.27,3.99697364]
[1762398742654,0.7,162.3,162.26,3.28697364]
[1762398742945,0.7,162.3,162.25,0.71]
[1762398743150,104.7,162.29,162.22,0.71]
[1762398743331,104.7,162.29,162.21,9.45169801]
[1762398743531,0.66,162.28,162.21,9.45169801]
[1762398743938,0.66,162.28,162.21,10.16169801]
[1762398744351,6.16256855,162.27,162.21,10.16169801]
[1762398744737,0.66,162.26,162.21,10.16169801]
[1762398745431,6.82309541,162.26,162.21,10.16169801]
[1762398745942,6.82309541,162.26,162.19,7.89]
[1762398745943,0.66,162.25,162.19,7.89]
[1762398746138,0.66,162.25,162.19,7.18]
[1762398746345,104.7,162.24,162.17,9.45334226]
[1762398746731,0.66,162.23,162.17,10.16334226]
[1762398747250,0.66,162.23,162.16,16.8336483]
[1762398747559,6.164468,162.22,162.16,7.38]
[1762398747736,21.57563801,162.22,162.16,7.38]
[1762398748052,0.66,162.21,162.16,0.2]
[1762398748630,0.66,162.21,162.16,6.36674684]
[1762398748830,0.66,162.21,162.16,9.65372048]
[1762398749249,0.66,162.21,162.16,10.36372048]
[1762398749555,6.82416084,162.23,162.18,9.45296204]
[1762398749752,0.66,162.23,162.19,3.28697364]
[1762398749952,0.66,162.23,162.19,3.99697364]
[1762398750247,0.66,162.22,162.19,3.99697364]
[1762398750852,0.66,162.22,162.17,6.87624971]
[1762398751037,0.66,162.22,162.16,6.36667796]
[1762398751363,0.66,162.22,162.16,9.6536516]
[1762398751657,6.82463751,162.22,162.16,9.6536516]
[1762398751854,6.82463751,162.22,162.16,10.3636516]
[1762398752058,0.66,162.21,162.16,10.3636516]
[1762398752260,105.36,162.21,162.16,10.3636516]
[1762398752756,0.66,162.2,162.17,3.28697364]
[1762398753654,104.7,162.21,162.18,3.99697364]
[1762398754035,105.36,162.21,162.18,3.99697364]
[1762398754357,104.7,162.21,162.19,3.28697364]
[1762398755255,104.7,162.21,162.19,9.45251125]
[1762398756053,105.37,162.21,162.18,9.45286038]
[1762398756558,105.37,162.21,162.18,10.13286038]
[1762398756951,105.37,162.21,162.18,9.45286038]
[1762398758541,0.67,162.2,162.17,9.45328105]
[1762398758957,0.67,162.2,162.16,0.2]
[1762398760070,6.83544201,162.2,162.16,6.3667203]
[1762398760638,0.67,162.19,162.16,6.3667203]
[1762398761760,0.67,162.19,162.16,9.65369394]
[1762398764764,0.67,162.19,162.17,3.28697364]
[1762398764969,104.7,162.21,162.18,3.28697364]
[1762398765158,104.7,162.21,162.18,3.96697364]
[1762398765466,105.37,162.21,162.18,3.96697364]
[1762398765667,104.7,162.21,162.18,3.96697364]
[1762398766250,105.37,162.21,162.18,3.96697364]
[1762398766956,105.37,162.21,162.18,9.45267834]
[1762398767155,105.37,162.21,162.18,10.13267834]
[1762398767358,105.37,162.21,162.18,9.45267834]
[1762398768143,104.7,162.21,162.19,3.96697364]
[1762398768451,104.7,162.21,162.19,3.28697364]
[1762398768958,104.7,162.21,162.19,9.45253243]
[1762398769562,105.37,162.21,162.19,9.45253243]
[1762398770072,104.7,162.21,162.19,9.45253243]
[1762398772585,25.40569991,162.27,162.2,3.98697364]
[1762398772586,105.35,162.27,162.2,3.98697364]
[1762398772881,104.7,162.26,162.24,3.28697364]
[1762398773086,105.35,162.26,162.21,0.7]
[1762398773381,0.65,162.25,162.22,3.28697364]
[1762398773577,0.65,162.25,162.22,9.45144164]
[1762398773769,0.65,162.25,162.22,3.28697364]
[1762398775760,104.7,162.24,162.17,16.11554657]
[1762398775964,104.7,162.23,162.19,3.28697364]
[1762398776487,0.65,162.22,162.19,3.28697364]
[1762398776694,0.65,162.22,162.2,3.28697364]
[1762398777158,0.65,162.22,162.19,3.28697364]
[1762398777761,0.65,162.22,162.2,3.28697364]
[1762398779567,0.65,162.22,162.19,3.28697364]
[1762398780080,6.81451238,162.22,162.19,3.28697364]
[1762398780281,6.81451238,162.22,162.16,43.38850763]
[1762398780282,6.81451238,162.22,162.16,0.2]
[1762398780489,22.012606,162.21,162.16,0.2]
[1762398780675,20.592,162.19,162.16,0.2]
[1762398781059,0.65,162.18,162.16,0.2]
[1762398781679,6.16636862,162.17,162.16,0.2]
[1762398782082,6.81636862,162.17,162.16,0.2]
[1762398783894,7.58716469,162.17,162.16,0.2]
[1762398784085,13.68513545,162.17,162.16,0.2]
[1762398784392,6.81636862,162.17,162.16,0.2]
[1762398786592,20.592,162.14,162.13,0.2]
[1762398787093,21.242,162.14,162.13,0.2]
[1762398787770,27.40950955,162.14,162.13,0.2]
[1762398788183,37.19833724,162.14,162.13,0.2]
[1762398788581,27.40950955,162.14,162.13,0.2]
[1762398789083,0.65,162.16,162.13,0.2]
[1762398789283,20.592,162.17,162.13,0.9]
[1762398789674,0.65,162.17,162.13,0.9]
[1762398789876,6.16605778,162.18,162.13,7.06788333]
[1762398790195,6.81570667,162.19,162.14,3.98697364]
[1762398790395,105.35,162.22,162.16,3.28697364]
[1762398790566,132.106468,162.22,162.17,3.28697364]
[1762398790772,0.65,162.21,162.16,3.28697364]
[1762398791291,0.65,162.21,162.16,3.98697364]
[1762398791508,0.65,162.21,162.16,0.7]
[1762398791674,0.65,162.21,162.13,4.18697364]
[1762398792068,6.16522811,162.2,162.13,10.35477917]
[1762398792302,6.16522811,162.2,162.14,3.98697364]
[1762398792484,6.81522811,162.2,162.14,2.80572687]
[1762398792982,0.65,162.19,162.14,2.80572687]
[1762398793386,0.65,162.19,162.14,2.10572687]
[1762398793694,6.81588285,162.19,162.14,8.97306466]
[1762398794696,125.292,162.22,162.15,0.7]
[1762398795008,0.65,162.2,162.13,0.9]
[1762398795178,0.65,162.2,162.14,2.10572687]
[1762398795499,0.65,162.2,162.14,2.80572687]
[1762398796298,104.7,162.19,162.15,6.1671292]
[1762398796602,104.7,162.19,162.15,6.8671292]
[1762398796772,104.7,162.19,162.16,2.10572687]
[1762398796973,105.35,162.19,162.16,2.10572687]
[1762398797397,104.7,162.19,162.17,0.7]
[1762398797988,104.7,162.19,162.17,2.10572687]
[1762398798293,104.7,162.19,162.16,2.10572687]
[1762398798497,104.7,162.19,162.16,8.97241758]
[1762398801306,104.7,162.19,162.16,6.86669071]
[1762398804604,104.7,162.19,162.17,2.82572687]
[1762398805101,104.7,162.19,162.17,0.72]
[1762398805803,104.7,162.19,162.16,8.27241758]
[1762398806011,104.7,162.19,162.16,8.99241758]
[1762398807412,104.7,162.19,162.16,2.82572687]
[1762398807903,105.42,162.19,162.15,8.27285607]
[1762398808103,105.42,162.19,162.15,8.99285607]
[1762398808495,105.42,162.19,162.16,2.82572687]
[1762398809518,104.7,162.19,162.16,8.99235602]
[1762398811716,104.7,162.19,162.16,6.88662915]
[1762398812117,105.42,162.19,162.16,6.88662915]
[1762398812913,104.7,162.19,162.16,6.88662915]
[1762398813416,104.7,162.19,162.16,8.99235602]
[1762398813802,105.42,162.19,162.16,8.99235602]
[1762398814614,105.42,162.19,162.13,8.4734918]
[1762398814615,0.72,162.18,162.13,8.4734918]
[1762398814792,0.72,162.18,162.13,13.54776493]
[1762398814993,0.72,162.18,162.13,7.38]
[1762398815209,0.72,162.18,162.13,14.26780067]
[1762398815415,0.72,162.18,162.13,16.37352754]
[1762398815713,0.72,162.18,162.14,0.7]
[1762398816414,6.88615124,162.18,162.13,31.77325245]
[1762398816992,0.68,162.17,162.14,2.10572687]
[1762398817927,0.68,162.17,162.13,0.2]
[1762398818422,21.5836211,162.16,162.13,0.2]
[1762398818607,0.68,162.15,162.13,0.2]
[1762398820095,0.77074855,162.18,162.13,0.2]
[1762398820291,0.68,162.18,162.13,3.00572687]
[1762398820497,6.84605944,162.18,162.14,2.10572687]
[1762398821315,6.84605944,162.18,162.13,9.17361002]
[1762398821524,0.68,162.17,162.13,9.17361002]
[1762398822099,6.84640466,162.17,162.13,0.2]
[1762398822311,22.26232622,162.17,162.13,0.2]
[1762398822605,105.38,162.16,162.13,0.2]
[1762398823110,0.68,162.15,162.13,0.2]
[1762398825109,105.38,162.16,162.13,3.00572687]
[1762398825621,105.38,162.16,162.13,9.17359003]
[1762398826928,105.38,162.16,162.13,7.06786316]
[1762398827325,110.86677043,162.16,162.13,0.2]
[1762398827531,0.68,162.15,162.13,0.2]
[1762398832124,0.68,162.15,162.13,6.36779371]
[1762398833314,0.68,162.15,162.13,0.2]
[1762398834324,104.7,162.16,162.14,2.77572687]
[1762398834629,104.7,162.2,162.15,2.10572687]
[1762398834828,104.7,162.2,162.17,2.10572687]
[1762398835036,104.7,162.2,162.17,2.77572687]
[1762398835726,105.36,162.2,162.17,2.10572687]
[1762398835936,111.52531607,162.2,162.17,2.10572687]
[1762398836139,0.66,162.19,162.17,2.10572687]
[1762398836434,0.66,162.19,162.16,8.27236796]
[1762398838434,104.7,162.2,162.17,2.77572687]
[1762398838731,0.66,162.22,162.17,0.67]
[1762398838910,0.66,162.22,162.19,2.10572687]
[1762398840138,0.66,162.22,162.2,2.10572687]
[1762398840630,0.66,162.22,162.19,2.10572687]
[1762398840834,0.66,162.22,162.18,8.27161223]
[1762398841134,0.66,162.22,162.18,8.94161223]
[1762398841831,6.82467736,162.22,162.16,16.08687222]
[1762398842037,6.82467736,162.22,162.17,2.10572687]
[1762398842237,0.66,162.21,162.17,6.16608732]
[1762398842539,0.66,162.21,162.17,8.94181419]
[1762398843035,0.66,162.21,162.16,8.27234265]
[1762398843412,0.66,162.21,162.16,8.94234265]
[1762398844135,6.82512831,162.21,162.16,8.94234265]
[1762398844529,0.66,162.2,162.16,8.94234265]
[1762398844725,0.66,162.2,162.15,15.45276314]
[1762398845122,0.66,162.2,162.16,2.10572687]
[1762398845324,27.41647773,162.22,162.18,2.10572687]
[1762398845523,0.66,162.21,162.18,2.10572687]
[1762398846134,104.7,162.2,162.18,2.10572687]
[1762398847231,104.7,162.2,162.18,8.27171046]
[1762398847418,104.7,162.2,162.17,6.16624336]
[1762398847622,104.7,162.2,162.18,2.10572687]
[1762398848433,104.7,162.2,162.18,8.27160036]
[1762398851045,105.36,162.2,162.18,8.27160036]
[1762398854228,104.7,162.2,162.19,2.77572687]
[1762398854425,104.7,162.2,162.19,3.95820969]
[1762398855951,104.7,162.2,162.19,10.12381792]
[1762398857147,0.66,162.23,162.19,25.53783851]
[1762398857450,0.66,162.23,162.2,3.95820969]
[1762398857655,0.66,162.23,162.21,3.28820969]
[1762398857859,26.75558118,162.25,162.18,6.1658931]
[1762398858161,26.75558118,162.25,162.16,15.41607487]
[1762398858162,0.66,162.22,162.16,7.18]
[1762398858327,104.7,162.21,162.16,7.18]
[1762398858733,0.66,162.2,162.16,7.18]
[1762398859348,0.66,162.2,162.16,13.34657968]
[1762398860150,6.82532379,162.2,162.16,13.34657968]
[1762398860656,6.82532379,162.2,162.13,0.2]
[1762398860657,21.252,162.19,162.13,0.2]
[1762398861028,0.66,162.18,162.13,0.2]
[1762398861362,6.16636862,162.17,162.13,6.36771992]
[1762398861861,0.66,162.18,162.14,0.67]
[1762398862176,0.66,162.18,162.14,3.95820969]
[1762398862633,0.66,162.18,162.15,0.72]
[1762398863030,0.69,162.2,162.15,4.00820969]
[1762398863225,0.69,162.2,162.16,3.28820969]
[1762398863536,0.69,162.2,162.17,0.72]
[1762398863731,0.69,162.2,162.14,4.00820969]
[1762398863732,6.8552423,162.2,162.14,4.00820969]
[1762398864044,6.8552423,162.2,162.14,3.28820969]
[1762398864260,0.69,162.19,162.14,9.45571063]
[1762398864467,0.69,162.19,162.14,10.17571063]
[1762398865142,0.69,162.19,162.14,9.45571063]
[1762398865343,6.85591004,162.19,162.15,0.72]
[1762398866054,6.16591004,162.19,162.15,0.72]
[1762398866242,0.69,162.18,162.14,9.45571063]
[1762398866441,0.69,162.18,162.14,10.17571063]
[1762398868557,0.69,162.18,162.15,0.72]
[1762398868856,6.85534219,162.2,162.16,6.16674888]
[1762398869355,0.69,162.19,162.15,4.00820969]
[1762398870153,0.69,162.19,162.15,0.72]
[1762398870355,0.69,162.19,162.15,6.88705577]
[1762398870552,6.85584099,162.19,162.15,6.88705577]
[1762398875675,0.66,162.18,162.13,10.66820969]
[1762398875980,104.7,162.2,162.17,3.28820969]
[1762398876649,104.7,162.2,162.18,0.71]
[1762398877464,104.7,162.2,162.17,3.28820969]
[1762398877670,104.7,162.2,162.17,10.1644874]
[1762398878660,104.7,162.2,162.18,3.28820969]
[1762398879461,0.66,162.19,162.15,3.28820969]
[1762398879659,0.66,162.19,162.16,7.18]
[1762398880367,0.66,162.19,162.16,13.34673212]
[1762398880670,0.66,162.19,162.16,14.05673212]
[1762398881061,104.7,162.2,162.17,3.99820969]
[1762398881266,104.7,162.2,162.19,3.28820969]
[1762398881564,0.66,162.25,162.19,10.46820969]
[1762398881801,0.66,162.25,162.21,3.28820969]
[1762398881962,26.75458391,162.27,162.22,3.28820969]
[1762398882154,0.66,162.27,162.24,3.28820969]
[1762398882347,0.66,162.28,162.25,3.28820969]
[1762398883574,0.66,162.28,162.25,3.99820969]
[1762398884163,0.66,162.28,162.25,10.16149618]
[1762398884370,6.82182849,162.29,162.25,3.99820969]
[1762398884972,0.66,162.28,162.25,3.28820969]
[1762398886174,6.82224904,162.28,162.22,7.18]
[1762398886371,6.82224904,162.28,162.22,13.34432699]
[1762398886573,0.66,162.27,162.23,3.28820969]
[1762398886879,0.66,162.27,162.22,14.05432699]
[1762398886880,0.66,162.27,162.22,6.87432699]
[1762398887077,0.66,162.27,162.23,3.28820969]
[1762398887792,0.66,162.27,162.23,9.45207702]
[1762398888255,6.82262681,162.27,162.23,6.16386733]
[1762398888452,0.66,162.27,162.23,9.45207702]
[1762398888656,0.66,162.27,162.23,10.16207702]
[1762398889560,0.66,162.27,162.23,6.87386733]
[1762398890075,105.36,162.27,162.23,6.87386733]
[1762398893495,105.36,162.27,162.24,0.72]
[1762398893496,104.7,162.27,162.24,0.72]
[1762398893790,104.7,162.27,162.26,3.28820969]
[1762398894284,104.7,162.27,162.26,4.00820969]
[1762398895467,0.69,162.31,162.26,10.17115804]
[1762398895771,0.69,162.31,162.28,3.28820969]
[1762398896373,0.69,162.31,162.29,3.28820969]
[1762398896683,6.25993266,162.34,162.29,3.28820969]
[1762398896869,0.69,162.33,162.3,3.28820969]
[1762398898087,6.85035129,162.33,162.29,10.16967312]
[1762398898275,0.69,162.33,162.29,10.16967312]
[1762398898893,0.69,162.33,162.28,7.18]
[1762398898894,6.85029624,162.33,162.28,7.18]
[1762398899081,0.69,162.32,162.27,9.45066956]
[1762398899297,0.69,162.32,162.28,3.28820969]
[1762398899888,6.85094552,162.32,162.27,16.61066956]
[1762398900092,6.85094552,162.32,162.25,9.45145995]
[1762398900313,0.69,162.31,162.26,7.16]
[1762398900474,0.69,162.31,162.26,11.16820969]
[1762398900677,0.69,162.31,162.27,0.72]
[1762398900997,0.69,162.31,162.27,4.00820969]
[1762398901483,0.69,162.33,162.3,3.28820969]
[1762398901799,0.69,162.32,162.27,3.28820969]
[1762398901981,22.25246181,162.32,162.28,7.16]
[1762398902181,6.85078611,162.32,162.26,9.4508839]
[1762398902383,105.39,162.31,162.26,16.6108839]
[1762398902693,105.39,162.31,162.26,9.4508839]
[1762398902887,0.69,162.3,162.25,16.61151058]
[1762398903087,105.39,162.3,162.23,16.61205634]
[1762398903289,105.39,162.3,162.24,0.72]
[1762398903592,0.69,162.29,162.24,4.00820969]
[1762398903986,0.69,162.29,162.24,6.88361969]
[1762398903987,6.85218845,162.29,162.24,6.88361969]
[1762398904377,0.69,162.28,162.24,6.88361969]
[1762398905296,104.7,162.3,162.25,0.72]
[1762398905590,0.69,162.29,162.25,4.00820969]
[1762398905790,0.69,162.29,162.25,3.28820969]
[1762398905992,0.69,162.29,162.25,9.45119272]
[1762398906204,0.69,162.29,162.26,3.28820969]
[1762398907187,104.7,162.28,162.21,3.28820969]
[1762398907391,104.7,162.28,162.2,4.00820969]
[1762398907598,0.69,162.27,162.2,4.00820969]
[1762398908290,6.16294835,162.26,162.21,6.16484803]
[1762398908804,0.69,162.25,162.21,9.45305772]
[1762398908986,0.69,162.25,162.21,10.17305772]
[1762398909296,0.69,162.25,162.21,4.00820969]
[1762398910400,0.69,162.25,162.21,10.17270769]
[1762398910698,6.16265036,162.27,162.22,0.72]
[1762398910888,6.85265036,162.27,162.22,3.28820969]
[1762398911210,0.69,162.26,162.2,6.8852061]
[1762398911405,0.69,162.26,162.21,3.28820969]
[1762398912209,20.592,162.24,162.18,10.44820969]
[1762398912383,104.7,162.23,162.18,10.44820969]
[1762398912584,105.39,162.23,162.19,3.28820969]
[1762398912798,0.69,162.22,162.19,3.28820969]
[1762398914476,0.69,162.22,162.19,8.27016917]
[1762398915491,0.69,162.22,162.19,2.10464898]
[1762398915697,0.69,162.22,162.18,7.16]
[1762398916013,0.69,162.22,162.19,2.10464898]
[1762398916321,104.7,162.23,162.21,2.10464898]